bitfinex-derivatives/quotes_SOLF0:USTF0_20250624
["timestamp","ask_amount","ask_price","bid_price","bid_amount"]
[1750782901282,6.9324,144.19,144.16,6.9335]
[1750782902283,6.9326,144.18,144.16,6.9335]
[1750782902681,6.9326,144.18,144.15,11.33545622]
[1750782902883,4.40155622,144.18,144.11,4.40155622]
[1750782903393,4.40155622,144.18,144.11,11.33715622]
[1750782903593,4.40155622,144.18,144.11,4.40155622]
[1750782904392,2.3894,144.2,144.13,4.40155622]
[1750782904589,42.70295622,144.21,144.13,4.40155622]
[1750782904805,42.70295622,144.21,144.15,4.40155622]
[1750782904988,6.9319,144.2,144.15,4.40155622]
[1750782905492,42.70295622,144.21,144.15,4.40155622]
[1750782905493,45.2327,144.21,144.17,6.9327]
[1750782905792,45.2327,144.21,144.15,4.40155622]
[1750782906682,36.04,144.21,144.15,4.40155622]
[1750782906887,2.3894,144.26,144.15,4.40155622]
[1750782906888,38.3767,144.25,144.19,4.40155622]
[1750782907581,38.3767,144.25,144.18,38.45]
[1750782907793,38.3767,144.25,144.19,4.40155622]
[1750782908190,38.3767,144.25,144.2,6.9315]
[1750782908590,6.93,144.24,144.19,4.40155622]
[1750782908789,6.93,144.24,144.2,6.9314]
[1750782909688,6.93,144.24,144.21,6.9311]
[1750782912199,45.3062,144.25,144.22,6.9306]
[1750782912495,36.02,144.28,144.21,4.40155622]
[1750782913293,6.9288,144.26,144.22,6.9305]
[1750782913499,36.02,144.28,144.21,4.40155622]
[1750782913796,6.9297,144.25,144.21,11.33245622]
[1750782914300,36.02,144.28,144.2,4.40155622]
[1750782915402,36.02,144.28,144.2,12.86997547]
[1750782915588,4.40155622,144.27,144.19,8.46841925]
[1750782915786,4.40155622,144.27,144.18,51.31997547]
[1750782915998,6.9309,144.22,144.19,6.9319]
[1750782918803,4.40155622,144.27,144.18,51.31997547]
[1750782919203,4.40155622,144.27,144.18,40.44155622]
[1750782919400,6.9314,144.21,144.18,47.37405622]
[1750782921399,6.9309,144.22,144.19,6.9321]
[1750782921593,4.40155622,144.27,144.18,48.90997547]
[1750782921795,36.02,144.28,144.22,11.33185622]
[1750782921995,36.02,144.28,144.22,4.40155622]
[1750782922394,6.9295,144.25,144.22,11.33195622]
[1750782922701,36.02,144.28,144.22,4.40155622]
[1750782923205,6.9295,144.25,144.22,11.33215622]
[1750782923502,6.9295,144.25,144.22,4.40155622]
[1750782923701,36.02,144.28,144.22,4.40155622]
[1750782923903,36.02,144.28,144.23,6.9302]
[1750782924209,36.02,144.28,144.22,4.40155622]
[1750782925202,6.9288,144.26,144.23,6.9298]
[1750782925599,36.02,144.28,144.22,40.40155622]
[1750782925802,6.9286,144.27,144.24,6.9297]
[1750782926204,36.02,144.28,144.24,4.40155622]
[1750782926398,6.9279,144.28,144.25,6.929]
[1750782926705,2.2561,144.3,144.25,6.929]
[1750782927009,6.9276,144.29,144.25,6.929]
[1750782927204,2.2561,144.3,144.24,4.40155622]
[1750782927702,6.9286,144.27,144.24,4.40155622]
[1750782928504,6.9292,144.26,144.24,4.40155622]
[1750782929205,2.2561,144.3,144.24,4.40155622]
[1750782929800,6.9289,144.26,144.24,4.40155622]
[1750782930402,6.9292,144.25,144.24,4.40155622]
[1750782930602,6.65765622,144.3,144.22,40.40155622]
[1750782930909,8.91025622,144.3,144.22,40.40155622]
[1750782931298,6.93,144.24,144.22,40.40155622]
[1750782932202,6.9302,144.23,144.22,36.0]
[1750782932400,4.40155622,144.28,144.2,4.40155622]
[1750782932802,6.9309,144.22,144.2,4.40155622]
[1750782933106,4.40155622,144.28,144.19,44.44841925]
[1750782933311,4.40155622,144.28,144.17,8.46841925]
[1750782933312,6.932,144.2,144.17,8.46841925]
[1750782933502,6.932,144.2,144.16,51.06167547]
[1750782933807,6.9325,144.19,144.16,57.99487547]
[1750782934008,4.40155622,144.24,144.16,51.06167547]
[1750782934009,2.2793,144.23,144.16,51.06167547]
[1750782934311,6.931,144.22,144.18,4.40155622]
[1750782934610,4.40155622,144.26,144.18,4.40155622]
[1750782934812,2.2793,144.25,144.18,4.40155622]
[1750782935110,6.9314,144.21,144.18,11.33395622]
[1750782936408,6.9309,144.22,144.19,6.9321]
[1750782936708,6.9309,144.22,144.18,4.40155622]
[1750782936910,6.9309,144.22,144.18,11.33395622]
[1750782937208,6.9309,144.22,144.18,4.40155622]
[1750782938709,6.9314,144.21,144.18,4.40155622]
[1750782939210,6.9314,144.21,144.18,11.33395622]
[1750782939511,6.9309,144.22,144.18,4.40155622]
[1750782940114,6.9309,144.22,144.18,11.33395622]
[1750782940413,6.9312,144.21,144.18,11.33395622]
[1750782941112,6.9309,144.22,144.18,11.33395622]
[1750782941606,6.9309,144.22,144.19,6.9321]
[1750782941911,6.9312,144.21,144.18,4.40155622]
[1750782942407,6.9312,144.21,144.18,11.33395622]
[1750782942713,6.9312,144.21,144.18,19.80237547]
[1750782943404,6.9309,144.22,144.18,19.80237547]
[1750782944812,6.9304,144.23,144.2,6.9316]
[1750782945112,2.2793,144.25,144.2,19.80157547]
[1750782945314,2.2793,144.25,144.2,55.80157547]
[1750782945510,6.93,144.24,144.2,55.80157547]
[1750782945703,6.93,144.24,144.21,6.931]
[1750782945900,6.9302,144.23,144.2,48.86997547]
[1750782946304,2.2793,144.25,144.21,6.9311]
[1750782946610,35.98,144.27,144.22,8.46841925]
[1750782946811,35.98,144.27,144.23,6.9299]
[1750782947115,6.929,144.26,144.23,6.9299]
[1750782947313,35.98,144.27,144.23,6.9299]
[1750782948114,6.9289,144.26,144.23,6.9299]
[1750782948613,6.9289,144.26,144.23,15.39831925]
[1750782949002,6.9286,144.27,144.23,8.46841925]
[1750782949203,4.7887,144.29,144.23,8.46841925]
[1750782949408,4.7887,144.29,144.24,12.86997547]
[1750782949604,6.928,144.28,144.25,6.929]
[1750782950004,6.928,144.28,144.25,15.39741925]
[1750782952119,6.928,144.28,144.25,6.929]
[1750782952814,11.7162,144.29,144.26,6.9284]
[1750782953020,9.3299,144.29,144.26,6.9284]
[1750782953215,2.3273,144.34,144.28,4.40155622]
[1750782953413,6.9252,144.34,144.31,6.9262]
[1750782953719,2.3682,144.35,144.3,4.40155622]
[1750782954016,2.3151,144.39,144.34,4.40155622]
[1750782954611,6.9231,144.38,144.34,4.40155622]
[1750782955106,6.9235,144.37,144.34,4.40155622]
[1750782957622,6.9232,144.38,144.34,11.32635622]
[1750782958118,6.9227,144.39,144.35,6.9244]
[1750782958314,4.6402,144.43,144.38,4.40155622]
[1750782958519,4.6402,144.43,144.4,4.40155622]
[1750782958520,2.2058,144.43,144.4,4.40155622]
[1750782958716,9.1267,144.43,144.4,4.40155622]
[1750782959324,2.2058,144.43,144.38,40.38155622]
[1750782959814,6.9213,144.42,144.38,40.38155622]
[1750782960217,9.1266,144.43,144.39,6.9222]
[1750782960411,2.2058,144.43,144.38,40.38155622]
[1750782960610,4.40155622,144.49,144.42,4.40155622]
[1750782960820,2.366,144.49,144.42,4.40155622]
[1750782961023,4.40155622,144.48,144.42,35.98]
[1750782961617,6.9206,144.43,144.42,35.98]
[1750782962012,6.921,144.43,144.4,6.9218]
[1750782962423,4.40155622,144.48,144.4,4.40155622]
[1750782962613,2.366,144.49,144.42,4.40155622]
[1750782962809,2.366,144.49,144.43,35.96]
[1750782963013,6.9208,144.43,144.41,40.36155622]
[1750782963220,4.40155622,144.47,144.41,35.96]
[1750782963823,6.9205,144.44,144.41,35.96]
[1750782964422,4.40155622,144.47,144.41,40.36155622]
[1750782965021,6.9204,144.44,144.41,47.28295622]
[1750782965225,4.40155622,144.47,144.41,40.36155622]
[1750782965626,6.9204,144.44,144.41,47.28285622]
[1750782965926,6.9204,144.44,144.41,42.8813]
[1750782967127,6.76755622,144.49,144.42,4.40155622]
[1750782967522,6.9196,144.46,144.43,6.9204]
[1750782968019,4.3929054,144.44,144.33,8.50408874]
[1750782968224,35.96,144.46,144.31,12.6505115]
[1750782968225,4.3929054,144.37,144.31,12.6505115]
[1750782969028,4.3929054,144.35,144.31,12.6505115]
[1750782969228,4.3929054,144.35,144.29,35.96]
[1750782970535,6.9264,144.31,144.29,35.96]
[1750782970923,6.9264,144.31,144.29,42.8873]
[1750782971130,6.9264,144.31,144.29,35.96]
[1750782971325,6.926,144.32,144.29,35.96]
[1750782971931,6.926,144.32,144.29,42.887]
[1750782973834,6.926,144.32,144.29,35.96]
[1750782974438,6.926,144.32,144.29,42.8873]
[1750782975134,2.2907,144.36,144.29,35.96]
[1750782975135,4.3929054,144.33,144.29,35.96]
[1750782975540,6.9268,144.3,144.29,35.96]
[1750782975740,6.9268,144.3,144.26,47.2812054]
[1750782975940,4.3929054,144.33,144.26,42.8883]
[1750782976236,6.9272,144.3,144.27,6.9282]
[1750782977739,6.7724054,144.33,144.28,6.9278]
[1750782977939,40.3529054,144.34,144.26,40.3529054]
[1750782978337,4.3929054,144.32,144.26,35.96]
[1750782978643,6.9276,144.29,144.26,35.96]
[1750782980242,6.9276,144.29,144.26,42.8885]
[1750782981242,6.9271,144.3,144.26,42.8885]
[1750782982042,6.9265,144.31,144.26,40.3529054]
[1750782982245,2.3166,144.33,144.26,40.3529054]
[1750782983046,6.9272,144.3,144.26,47.2813054]
[1750782983347,4.3929054,144.32,144.26,35.96]
[1750782983644,6.9276,144.29,144.26,42.8885]
[1750782983847,4.3929054,144.32,144.26,40.3529054]
[1750782984042,6.9273,144.3,144.27,6.9281]
[1750782984444,4.3929054,144.32,144.26,40.3529054]
[1750782984647,2.3166,144.33,144.26,40.3529054]
[1750782984855,6.9267,144.31,144.26,40.3529054]
[1750782985044,35.96,144.34,144.26,40.3529054]
[1750782985245,6.9263,144.32,144.28,6.9276]
[1750782985748,35.96,144.34,144.28,4.3929054]
[1750782986355,6.9259,144.32,144.29,6.9271]
[1750782986651,2.2907,144.36,144.28,4.3929054]
[1750782986843,6.9266,144.31,144.28,6.9278]
[1750782987352,4.3929054,144.35,144.26,40.3529054]
[1750782987743,4.3929054,144.35,144.28,4.3929054]
[1750782988843,6.9251,144.34,144.3,6.9265]
[1750782989844,6.9247,144.35,144.28,4.3929054]
[1750782990054,6.9247,144.35,144.3,36.04]
[1750782990351,6.9247,144.35,144.3,40.4329054]
[1750782991248,6.9247,144.35,144.32,6.9258]
[1750782991550,42.6939054,144.37,144.3,36.04]
[1750782991936,6.9252,144.34,144.3,36.04]
[1750782992352,6.9252,144.34,144.31,6.9263]
[1750782992746,6.9254,144.33,144.3,36.04]
[1750782993048,42.6939054,144.37,144.3,36.04]
[1750782993245,6.9257,144.33,144.3,36.04]
[1750782993446,42.6939054,144.37,144.31,6.9263]
[1750782994048,6.9248,144.35,144.31,6.9263]
[1750782994243,42.6939054,144.37,144.32,6.9258]
[1750782994746,42.6939054,144.37,144.31,6.9262]
[1750782995250,6.9252,144.34,144.31,6.9262]
[1750783000656,6.9245,144.35,144.31,4.3929054]
[1750783000852,38.301,144.37,144.31,4.3929054]
[1750783001052,38.301,144.37,144.31,11.3190054]
[1750783001249,42.6939054,144.37,144.31,6.9261]
[1750783001756,6.9252,144.34,144.31,6.9261]
[1750783002259,6.9247,144.35,144.32,6.9258]
[1750783002558,42.6939054,144.37,144.3,36.04]
[1750783002754,6.9252,144.34,144.31,6.9262]
[1750783002955,42.6939054,144.37,144.31,6.9262]
[1750783003357,6.9248,144.35,144.32,6.9259]
[1750783003553,38.301,144.37,144.31,4.3929054]
[1750783003855,36.02,144.4,144.35,11.31651886]
[1750783004053,42.83281886,144.43,144.35,4.39231886]
[1750783004450,42.83281886,144.43,144.36,6.9236]
[1750783004955,4.39231886,144.41,144.34,36.02]
[1750783005645,6.9233,144.38,144.34,36.02]
[1750783005854,4.39231886,144.42,144.34,36.02]
[1750783006157,38.4405,144.43,144.35,4.39231886]
[1750783007160,6.9213,144.42,144.38,6.9229]
[1750783007357,40.41231886,144.46,144.39,4.39231886]
[1750783007952,40.41231886,144.46,144.39,11.31481886]
[1750783008662,6.9211,144.43,144.39,11.31481886]
[1750783008957,6.9213,144.42,144.39,4.39231886]
[1750783009359,6.9213,144.42,144.39,11.31481886]
[1750783009559,6.9213,144.42,144.38,36.02]
[1750783009762,4.39231886,144.45,144.38,36.02]
[1750783010167,36.02,144.46,144.35,48.91862605]
[1750783010168,4.39231886,144.43,144.35,48.91862605]
[1750783010356,6.9223,144.4,144.35,48.91862605]
[1750783011060,6.9223,144.4,144.35,40.41231886]
[1750783011453,6.9218,144.41,144.37,11.31551886]
[1750783011667,6.9218,144.41,144.37,4.39231886]
[1750783012158,4.39231886,144.45,144.37,4.39231886]
[1750783012361,36.02,144.47,144.37,4.39231886]
[1750783012552,4.39231886,144.46,144.39,6.9222]
[1750783012752,6.9211,144.43,144.39,42.9422]
[1750783013153,4.39231886,144.46,144.39,40.41231886]
[1750783013763,4.39231886,144.46,144.4,6.9218]
[1750783014555,6.9212,144.42,144.39,47.33461886]
[1750783014760,4.39231886,144.46,144.39,36.02]
[1750783014960,4.39231886,144.46,144.39,42.9425]
[1750783015264,6.9215,144.42,144.39,42.9425]
[1750783016366,4.39231886,144.46,144.4,6.922]
[1750783016575,4.39231886,144.46,144.39,36.02]
[1750783017065,6.9211,144.42,144.39,42.9421]
[1750783017567,6.9211,144.42,144.39,36.02]
[1750783017765,6.9208,144.43,144.4,6.9218]
[1750783017964,4.39041575,144.46,144.39,36.02]
[1750783018467,4.39041575,144.46,144.4,6.9218]
[1750783019270,6.921,144.43,144.4,6.9218]
[1750783020071,4.39034232,144.46,144.39,36.02]
[1750783020970,6.9218,144.41,144.39,36.02]
[1750783021364,4.39034232,144.46,144.39,36.02]
[1750783021960,6.9209,144.43,144.4,6.9218]
[1750783022361,6.9204,144.44,144.41,6.9212]
[1750783022672,36.02,144.47,144.4,4.39034232]
[1750783023168,6.9204,144.44,144.41,6.9214]
[1750783023560,36.02,144.47,144.4,4.39034232]
[1750783024275,36.02,144.47,144.41,6.9214]
[1750783024276,6.9205,144.44,144.41,6.9214]
[1750783026577,40.40951641,144.47,144.39,40.40951641]
[1750783027180,6.9213,144.42,144.39,47.33181641]
[1750783029981,4.38951641,144.45,144.39,36.02]
[1750783031077,6.9219,144.41,144.39,36.02]
[1750783031978,6.922,144.4,144.39,36.02]
[1750783032182,4.38951641,144.45,144.39,36.02]
[1750783032789,6.9211,144.42,144.4,6.9218]
[1750783033387,6.9211,144.42,144.39,36.02]
[1750783033388,6.9217,144.41,144.39,42.9423]
[1750783033683,6.9217,144.41,144.39,36.02]
[1750783035183,6.9217,144.41,144.39,42.9424]
[1750783035385,6.9217,144.41,144.39,36.02]
[1750783036286,6.9214,144.42,144.39,42.9423]
[1750783036585,6.9214,144.42,144.39,36.02]
[1750783037384,6.9216,144.41,144.39,36.02]
[1750783037774,4.38951641,144.45,144.39,36.02]
[1750783038089,6.9213,144.42,144.39,36.02]
[1750783038384,6.9213,144.42,144.39,42.9425]
[1750783038587,6.9216,144.41,144.39,36.02]
[1750783039992,6.9213,144.42,144.39,36.02]
[1750783040291,4.38951641,144.45,144.39,36.02]
[1750783040492,6.9218,144.41,144.39,36.02]
[1750783040688,4.38951641,144.45,144.39,36.02]
[1750783040888,4.38951641,144.43,144.36,35.94]
[1750783041091,6.9247,144.35,144.32,6.9256]
[1750783041289,4.3930662,144.37,144.3,48.69946078]
[1750783041594,4.3930662,144.37,144.31,6.9261]
[1750783042196,6.61821047,144.38,144.3,40.33531047]
[1750783042891,6.61821047,144.38,144.32,6.9257]
[1750783042892,6.9248,144.35,144.32,6.9257]
[1750783043494,6.9241,144.36,144.33,6.9252]
[1750783043689,2.2229,144.38,144.3,40.33531047]
[1750783044091,6.9242,144.36,144.33,6.9253]
[1750783044394,2.2229,144.38,144.3,40.33531047]
[1750783044890,6.9247,144.35,144.32,6.9259]
[1750783049090,2.2229,144.38,144.31,6.9262]
[1750783049790,6.9249,144.35,144.31,6.9262]
[1750783050501,6.9245,144.35,144.3,48.9292065]
[1750783050704,4.39531047,144.37,144.3,48.9292065]
[1750783050998,4.39531047,144.37,144.3,55.8557065]
[1750783051294,6.9259,144.32,144.3,35.94]
[1750783051691,6.9257,144.33,144.3,35.94]
[1750783052388,6.9257,144.33,144.3,42.8668]
[1750783052995,6.9257,144.33,144.31,6.9263]
[1750783053497,6.9257,144.33,144.3,42.8666]
[1750783054889,6.9261,144.32,144.3,35.94]
[1750783055902,6.9257,144.33,144.3,42.8668]
[1750783056702,2.4331,144.36,144.3,35.94]
[1750783057298,6.9259,144.33,144.3,35.94]
[1750783057501,6.9259,144.33,144.3,42.8668]
[1750783057697,2.4331,144.36,144.3,35.94]
[1750783058499,6.9261,144.32,144.3,35.94]
[1750783058700,6.9261,144.32,144.3,42.8666]
[1750783058903,2.4331,144.36,144.3,42.8666]
[1750783059196,6.9256,144.33,144.31,6.9262]
[1750783059405,2.4331,144.36,144.3,35.94]
[1750783059699,6.9252,144.34,144.32,6.9258]
[1750783060089,8.87521047,144.38,144.32,6.9258]
[1750783060499,6.9251,144.34,144.32,6.9258]
[1750783060697,4.4799,144.38,144.3,35.94]
[1750783060893,4.39531047,144.36,144.3,35.94]
[1750783061293,6.9257,144.33,144.31,6.9261]
[1750783063799,6.9257,144.33,144.3,42.8666]
[1750783064395,4.39531047,144.36,144.3,35.94]
[1750783064892,6.9262,144.32,144.3,35.94]
[1750783065196,6.9262,144.32,144.3,42.8668]
[1750783065404,6.9256,144.33,144.3,42.8668]
[1750783067202,6.9261,144.32,144.3,35.94]
[1750783067400,4.39531047,144.36,144.29,6.9271]
[1750783067601,35.94,144.35,144.29,6.9271]
[1750783067806,35.94,144.35,144.3,6.9268]
[1750783068006,35.94,144.35,144.28,8.90141047]
[1750783068409,35.94,144.35,144.29,6.9271]
[1750783068608,6.9261,144.32,144.29,6.9271]
[1750783069009,35.94,144.35,144.29,6.9271]
[1750783069305,6.9264,144.31,144.28,15.82901047]
[1750783069508,4.39531047,144.34,144.28,2.2664]
[1750783069696,6.9276,144.29,144.27,35.94]
[1750783071499,6.9278,144.28,144.27,35.94]
[1750783071708,4.39531047,144.32,144.27,35.94]
[1750783071897,6.9277,144.29,144.27,35.94]
[1750783072098,4.39531047,144.32,144.26,6.9287]
[1750783072703,6.9277,144.29,144.26,6.9287]
[1750783072907,6.9277,144.29,144.27,6.9283]
[1750783073707,6.9277,144.29,144.26,6.9285]
[1750783078604,6.9277,144.29,144.26,15.52239603]
[1750783079108,6.9277,144.29,144.26,6.9285]
[1750783079300,6.9277,144.29,144.26,15.52239603]
[1750783080509,6.9277,144.29,144.27,6.9282]
[1750783081612,4.39531047,144.32,144.26,8.59389603]
[1750783081903,4.39531047,144.3,144.26,8.59389603]
[1750783082106,4.39531047,144.3,144.24,51.46359603]
[1750783082408,4.39531047,144.3,144.25,8.59389603]
[1750783082608,6.9282,144.28,144.25,6.929]
[1750783082806,4.39531047,144.3,144.24,44.53389603]
[1750783083005,38.2784,144.31,144.24,44.53389603]
[1750783083310,38.2784,144.31,144.25,8.59389603]
[1750783083901,6.9271,144.3,144.27,6.928]
[1750783084102,38.2784,144.31,144.26,8.59389603]
[1750783084301,35.9,144.31,144.27,8.59389603]
[1750783085107,35.9,144.31,144.28,8.59389603]
[1750783085906,6.9273,144.3,144.28,8.59389603]
[1750783086408,6.9273,144.3,144.28,15.52149603]
[1750783086610,4.6207,144.33,144.29,8.59389603]
[1750783086817,2.3253,144.33,144.29,8.59389603]
[1750783087113,6.9252,144.34,144.3,8.59389603]
[1750783087506,42.72831047,144.37,144.31,8.59389603]
[1750783087706,38.333,144.37,144.32,8.59389603]
[1750783088310,6.9249,144.35,144.32,8.59389603]
[1750783088702,6.9249,144.35,144.31,19.9153065]
[1750783091217,6.9249,144.35,144.32,6.9258]
[1750783091419,6.9249,144.34,144.31,12.9892065]
[1750783091621,38.333,144.37,144.31,12.9892065]
[1750783091820,38.333,144.37,144.32,6.9258]
[1750783092123,6.9247,144.35,144.32,6.9258]
[1750783093320,35.9,144.37,144.31,12.9892065]
[1750783093515,2.401,144.39,144.33,4.39531047]
[1750783094223,6.9233,144.38,144.35,6.9242]
[1750783094425,2.401,144.39,144.33,4.39531047]
[1750783094717,6.9245,144.35,144.32,44.49389603]
[1750783095109,6.79631047,144.39,144.32,51.41969603]
[1750783096222,6.9254,144.33,144.32,44.49389603]
[1750783096425,6.9254,144.33,144.3,8.59389603]
[1750783096825,6.9263,144.32,144.3,8.59389603]
[1750783097017,40.29531047,144.37,144.3,8.59389603]
[1750783097323,6.9257,144.33,144.3,15.52049603]
[1750783097725,4.39531047,144.34,144.29,35.9]
[1750783097927,6.9266,144.31,144.29,35.9]
[1750783098228,4.39531047,144.34,144.29,35.9]
[1750783098423,35.9,144.37,144.28,8.59389603]
[1750783098424,6.9273,144.29,144.28,8.59389603]
[1750783098618,4.39531047,144.32,144.27,8.59389603]
[1750783098820,6.65181047,144.32,144.26,8.59389603]
[1750783099025,6.9283,144.27,144.26,8.59389603]
[1750783099222,11.26511047,144.32,144.25,44.49389603]
[1750783099529,6.9285,144.27,144.25,44.49389603]
[1750783100022,6.9288,144.26,144.25,44.49389603]
[1750783100928,6.9288,144.26,144.25,8.59389603]
[1750783101127,6.9292,144.25,144.24,8.59389603]
[1750783101927,6.9292,144.25,144.23,8.59389603]
[1750783102633,6.929,144.26,144.23,15.52399603]
[1750783103726,6.9279,144.28,144.24,6.9294]
[1750783103935,11.26511047,144.32,144.24,19.9186065]
[1750783104829,2.2565,144.32,144.26,4.39531047]
[1750783105020,4.39531047,144.34,144.28,4.39531047]
[1750783105222,4.39531047,144.35,144.27,12.9892065]
[1750783105427,6.9264,144.32,144.28,6.9276]
[1750783105734,4.39531047,144.35,144.27,12.9892065]
[1750783106035,4.39531047,144.35,144.28,8.59389603]
[1750783106929,6.9259,144.32,144.29,6.9271]
[1750783107330,42.729,144.36,144.29,6.9271]
[1750783107537,6.9253,144.34,144.3,6.9267]
[1750783108025,6.9247,144.35,144.31,6.9261]
[1750783108227,38.1275,144.36,144.31,11.32141047]
[1750783108427,38.1275,144.36,144.31,4.39531047]
[1750783109335,6.9252,144.34,144.31,4.39531047]
[1750783110035,6.9252,144.34,144.31,11.32141047]
[1750783111927,6.9255,144.33,144.3,55.7559065]
[1750783112636,6.9251,144.34,144.31,6.9263]
[1750783113839,6.9248,144.35,144.32,6.9258]
[1750783114033,38.1275,144.36,144.3,48.8292065]
[1750783114929,6.9252,144.34,144.31,6.9261]
[1750783117238,42.8241,144.36,144.33,6.9254]
[1750783117431,35.84,144.39,144.32,4.39531047]
[1750783117629,35.84,144.39,144.34,4.39531047]
[1750783117934,6.9238,144.37,144.34,4.39531047]
[1750783118441,6.9241,144.36,144.34,4.39531047]
[1750783118739,6.9241,144.36,144.33,6.925]
[1750783118938,35.84,144.39,144.32,11.32111047]
[1750783119239,6.9241,144.36,144.32,4.39531047]
[1750783120038,6.9238,144.37,144.34,6.9249]
[1750783120337,35.84,144.39,144.32,12.9892065]
[1750783120840,6.9238,144.37,144.33,6.9249]
[1750783121036,35.84,144.39,144.33,6.9249]
[1750783121342,6.9243,144.36,144.33,6.9249]
[1750783123843,6.9245,144.35,144.32,19.9148065]
[1750783126448,6.9245,144.35,144.32,11.32091047]
[1750783126948,6.925,144.34,144.31,15.51999603]
[1750783127149,4.39531047,144.38,144.3,48.8292065]
[1750783127750,6.9252,144.34,144.31,15.51989603]
[1750783127947,6.9252,144.34,144.31,6.926]
[1750783128434,6.9255,144.33,144.31,6.926]
[1750783128634,6.9255,144.33,144.31,15.51989603]
[1750783129652,6.9252,144.34,144.31,15.51989603]
[1750783130449,6.9247,144.35,144.32,11.32111047]
[1750783130950,6.9247,144.35,144.32,4.39531047]
[1750783131845,6.9242,144.36,144.32,4.39531047]
[1750783132048,6.7846,144.4,144.34,4.39531047]
[1750783132252,2.2149,144.4,144.34,4.39531047]
[1750783132552,2.2149,144.4,144.34,40.23531047]
[1750783133251,6.9234,144.38,144.35,6.9242]
[1750783133945,6.9237,144.37,144.34,47.16001047]
[1750783134346,6.9231,144.38,144.35,6.9242]
[1750783134548,2.2149,144.4,144.34,40.23531047]
[1750783135043,6.61021047,144.4,144.34,35.84]
[1750783135349,6.61021047,144.4,144.31,15.12266078]
[1750783135354,6.61021047,144.4,144.32,12.9892065]
[1750783135550,6.9249,144.34,144.32,19.9149065]
[1750783135749,6.9249,144.34,144.32,11.32101047]
[1750783137653,38.0026,144.39,144.31,44.37389603]
[1750783137853,6.63541047,144.38,144.31,44.37389603]
[1750783138052,6.63541047,144.38,144.31,35.78]
[1750783138253,6.9247,144.35,144.32,6.9256]
[1750783138648,6.63541047,144.38,144.31,51.29999603]
[1750783139349,6.9251,144.34,144.31,51.29999603]
[1750783139848,6.63541047,144.38,144.31,44.37389603]
[1750783140049,6.9258,144.33,144.31,44.37389603]
[1750783140452,6.63541047,144.38,144.31,51.29999603]
[1750783140649,6.63541047,144.38,144.31,44.37389603]
[1750783141155,6.9256,144.33,144.31,51.30019603]
[1750783141345,6.63541047,144.38,144.31,35.78]
[1750783141752,6.9259,144.32,144.31,35.78]
[1750783142759,4.39531047,144.36,144.29,11.32241047]
[1750783143058,35.78,144.35,144.28,46.78769603]
[1750783143260,4.39531047,144.34,144.28,44.37389603]
[1750783143557,6.81821047,144.34,144.28,35.78]
[1750783143747,6.9262,144.32,144.28,35.78]
[1750783143948,6.9262,144.32,144.28,44.37389603]
[1750783144851,6.9262,144.32,144.29,6.9272]
[1750783145350,6.9264,144.31,144.28,51.30149603]
[1750783145548,6.81821047,144.34,144.28,51.30149603]
[1750783146149,6.9272,144.3,144.28,51.30149603]
[1750783146360,6.9272,144.3,144.28,15.52149603]
[1750783146549,6.81821047,144.34,144.29,6.927]
[1750783146953,6.9267,144.31,144.29,6.927]
[1750783147165,2.4229,144.34,144.3,6.9268]
[1750783147451,2.4229,144.34,144.29,12.9892065]
[1750783147652,2.4229,144.34,144.29,11.32241047]
[1750783147856,2.4229,144.34,144.29,6.9271]
[1750783148159,6.9264,144.32,144.29,6.9271]
[1750783148361,6.9264,144.32,144.3,6.9268]
[1750783149056,6.9256,144.33,144.3,6.9268]
[1750783149253,6.9256,144.33,144.3,8.59389603]
[1750783149657,6.9256,144.33,144.3,15.52049603]
[1750783150154,2.4229,144.34,144.3,15.52049603]
[1750783150959,2.4229,144.34,144.31,6.9262]